bitfinex-derivatives/quotes_ETHF0:USTF0_20220106
["timestamp","ask_amount","ask_price","bid_price","bid_amount"]
[1641501717864,2.00479,3426.0,3425.3,0.397182]
[1641501717865,1.45712695,3426.1,3425.3,0.397182]
[1641501718265,1.45712695,3426.1,3425.3,12.90176272]
[1641501718865,2.91640577,3426.1,3425.3,12.90176272]
[1641501719065,2.91640577,3426.1,3425.7,14.49479]
[1641501719266,2.91640577,3426.1,3425.7,0.54505465]
[1641501719467,1.45712695,3426.1,3425.7,0.54505465]
[1641501720470,2.00479,3426.5,3426.0,0.04287305]
[1641501720669,3.46191695,3426.5,3426.0,0.8125]
[1641501720970,3.46191695,3426.5,3426.1,0.397182]
[1641501721869,2.00479,3426.5,3426.1,0.397182]
[1641501722269,1.45712695,3426.2,3426.1,0.397182]
[1641501722468,2.00479,3426.5,3426.1,0.397182]
[1641501722669,1.45712695,3426.2,3426.1,0.397182]
[1641501722870,2.47490895,3426.2,3424.9,2.00479]
[1641501723074,1.45712695,3425.6,3424.9,2.00479]
[1641501723270,2.00479,3425.7,3425.0,0.397182]
[1641501724272,2.00479,3425.7,3425.0,1.27307481]
[1641501724472,2.00479,3425.7,3425.0,2.03987481]
[1641501724672,2.00479,3425.7,3425.2,4.0]
[1641501724873,2.00479,3425.7,3425.3,0.397182]
[1641501725973,2.00479,3425.7,3425.3,0.41176285]
[1641501726172,2.389262,3426.5,3425.3,0.41176285]
[1641501726173,2.00479,3426.5,3425.6,0.93318632]
[1641501726373,2.00479,3426.5,3425.9,16.49]
[1641501726574,2.00479,3426.5,3426.0,0.397182]
[1641501726774,2.00479,3426.5,3426.3,0.87556819]
[1641501727174,2.00479,3426.5,3426.4,0.397182]
[1641501729980,3.92189895,3426.5,3426.4,0.397182]
[1641501730179,2.464772,3426.5,3426.3,0.87556819]
[1641501730978,2.00479,3426.5,3426.3,0.87556819]
[1641501731981,2.00479,3426.5,3426.4,0.397182]
[1641501732180,2.00479,3426.5,3426.4,1.212982]
[1641501732781,2.464772,3426.5,3426.4,1.212982]
[1641501733182,2.464772,3426.5,3426.4,0.8158]
[1641501733382,3.46191695,3426.5,3426.4,0.8158]
[1641501735582,3.46191695,3426.9,3426.4,14.80815158]
[1641501735783,2.00479,3426.9,3426.5,12.90175747]
[1641501736583,2.00479,3426.9,3426.8,1.46328263]
[1641501736983,2.00479,3426.9,3426.8,1.86046463]
[1641501739787,0.459982,3426.9,3426.8,1.86046463]
[1641501739986,1.45712695,3427.2,3426.8,1.86046463]
[1641501740587,3.46340898,3427.6,3426.8,1.86046463]
[1641501740989,1.45712695,3426.9,3426.8,1.86046463]
[1641501743191,4.00958,3427.6,3426.8,1.86046463]
[1641501743392,1.45712695,3426.9,3426.8,1.86046463]
[1641501745592,1.91710895,3426.9,3426.8,1.46328263]
[1641501747495,2.38003106,3426.9,3426.3,0.87556819]
[1641501747697,1.45712695,3426.4,3426.3,0.87556819]
[1641501747895,1.91710895,3426.4,3426.1,0.23260801]
[1641501748097,1.45712695,3426.2,3426.1,0.23260801]
[1641501748898,1.45712695,3426.2,3425.8,0.837582]
[1641501749396,2.00479,3426.5,3425.8,0.837582]
[1641501749397,1.45712695,3426.1,3425.8,0.4404]
[1641501749898,1.45712695,3425.9,3425.7,6.51287487]
[1641501750096,1.45712695,3425.9,3425.7,5.462]
[1641501750297,1.45712695,3425.9,3425.4,2.00479]
[1641501750497,0.384472,3426.0,3425.4,2.00479]
[1641501750897,1.45712695,3425.6,3425.4,2.00479]
[1641501751101,1.91710895,3425.6,3425.4,2.00479]
[1641501752199,1.45712695,3425.6,3425.4,2.00479]
[1641501752401,2.00479,3425.9,3425.4,2.00479]
[1641501752600,2.00479,3425.9,3425.4,2.85099]
[1641501752801,2.00479,3425.9,3425.4,3.248172]
[1641501753000,3.46191695,3425.9,3425.4,3.248172]
[1641501753201,2.00479,3425.9,3425.4,3.248172]
[1641501753401,1.45712695,3425.6,3425.4,3.248172]
[1641501753601,2.00479,3425.9,3425.4,3.248172]
[1641501754206,1.45712695,3425.6,3425.4,3.248172]
[1641501754404,2.00479,3425.9,3425.5,12.49]
[1641501754604,3.46191695,3425.9,3425.8,1.88699928]
[1641501755104,3.46191695,3425.9,3425.8,2.28418128]
[1641501755906,3.92189895,3425.9,3425.8,2.28418128]
[1641501756108,3.46191695,3425.9,3425.8,2.28418128]
[1641501757207,0.6007699,3425.9,3425.8,2.28418128]
[1641501757405,0.6007699,3426.1,3425.8,18.77418128]
[1641501757607,0.6007699,3426.6,3426.0,12.49]
[1641501757806,0.6007699,3426.6,3426.4,4.0]
[1641501758007,0.6007699,3426.6,3426.4,4.8043]
[1641501758406,2.00479,3426.8,3426.5,0.397182]
[1641501759506,0.6007699,3426.6,3426.5,0.397182]
[1641501760407,0.6007699,3426.7,3426.5,0.397182]
[1641501761610,2.6055599,3426.8,3426.5,0.397182]
[1641501761810,2.00479,3426.8,3426.5,0.397182]
[1641501762809,2.00479,3426.8,3426.7,5.42784038]
[1641501763209,2.00479,3426.8,3426.7,5.82502238]
[1641501767523,2.6055599,3426.8,3426.7,5.82502238]
[1641501767723,2.00479,3426.8,3426.7,5.82502238]
[1641501767923,2.6055599,3426.8,3426.7,5.82502238]
[1641501768423,2.6055599,3426.8,3426.7,5.42784038]
[1641501770530,3.0655419,3426.8,3426.7,5.42784038]
[1641501770729,3.0655419,3426.8,3426.2,2.01936681]
[1641501770924,0.6007699,3426.3,3426.2,2.01936681]
[1641501771129,0.6007699,3426.3,3426.2,2.00479]
[1641501774133,2.01008267,3426.3,3426.2,2.00479]
[1641501774934,2.47006467,3426.3,3426.2,2.00479]
[1641501775537,2.00710602,3426.3,3426.2,2.00479]
[1641501775734,1.0607519,3426.3,3426.1,3.74457971]
[1641501777938,0.6007699,3426.3,3426.1,3.74457971]
[1641501779039,0.459982,3426.2,3426.1,3.74457971]
[1641501779439,0.6007699,3426.3,3426.1,3.74457971]
[1641501779839,1.0607519,3426.3,3425.9,2.401972]
[1641501780040,0.6007699,3426.1,3425.9,2.00479]
[1641501780542,0.94635412,3426.5,3425.9,2.00479]
[1641501780543,0.6007699,3426.3,3426.1,4.50782028]
[1641501780939,0.6007699,3426.3,3426.2,4.52645888]
[1641501781142,0.6007699,3426.3,3426.2,5.11345888]
[1641501782842,0.6007699,3426.3,3426.2,0.587]
[1641501783041,1.0607519,3426.3,3426.2,0.587]
[1641501783243,1.0607519,3426.3,3426.1,0.397182]
[1641501783444,1.0607519,3426.3,3425.9,2.00479]
[1641501783645,0.459982,3426.3,3425.9,2.00479]
[1641501783843,0.6007699,3426.2,3425.9,2.00479]
[1641501785144,0.6007699,3426.2,3426.0,0.397182]
[1641501785545,0.6007699,3426.2,3426.0,1.8942046]
[1641501786446,0.459982,3426.1,3426.0,1.4970226]
[1641501787446,0.6007699,3426.2,3426.0,1.4970226]
[1641501788748,0.6007699,3426.2,3426.0,2.2830226]
[1641501790153,0.459982,3426.1,3426.0,2.2830226]
[1641501790353,0.6007699,3426.2,3426.0,2.2830226]
[1641501791354,0.6007699,3426.2,3426.0,2.6802046]
[1641501792254,0.6007699,3426.2,3426.0,6.6802046]
[1641501792453,0.6007699,3426.2,3426.0,19.1702046]
[1641501792653,0.6007699,3426.5,3426.2,1.62625679]
[1641501792854,0.6007699,3426.5,3426.3,0.397182]
[1641501793053,0.6007699,3426.5,3426.4,12.49]
[1641501793253,0.94635412,3426.6,3426.4,12.49]
[1641501793455,0.30694266,3426.9,3426.8,12.49]
[1641501793655,3.78818964,3427.4,3427.3,1.13902063]
[1641501793955,3.78818964,3427.4,3427.3,0.397182]
[1641501794355,4.84894154,3427.4,3426.8,4.37589608]
[1641501794556,0.6007699,3427.0,3426.8,1.154682]
[1641501794758,0.6007699,3427.0,3426.8,0.397182]
[1641501795356,1.0607519,3427.0,3426.8,0.397182]
[1641501795554,0.6007699,3427.0,3426.8,0.397182]
[1641501796557,0.4629304,3426.9,3426.8,0.397182]
[1641501797760,0.459982,3426.9,3426.8,0.397182]
[1641501798158,0.6007699,3427.0,3426.8,0.397182]
[1641501798962,0.459982,3426.9,3426.8,0.397182]
[1641501799163,0.6007699,3427.0,3426.8,0.397182]
[1641501799362,0.46293026,3426.9,3426.8,0.397182]
[1641501803070,2.00479,3427.4,3426.9,0.62160087]
[1641501803270,3.82544703,3427.8,3427.2,13.3892301]
[1641501803475,2.36692767,3427.8,3427.7,13.40379999]
[1641501803672,1.78339964,3427.8,3427.7,16.33947199]
[1641501803869,1.78339964,3427.9,3427.7,16.33947199]
[1641501804472,1.30839964,3427.9,3427.7,16.33947199]
[1641501805074,1.30839964,3427.9,3427.8,17.157716]
[1641501805273,2.37786619,3428.1,3427.8,17.157716]
[1641501805473,2.37786619,3428.1,3428.0,12.49]
[1641501805673,2.37786619,3428.1,3427.9,1.2964121]
[1641501805874,2.37786619,3428.1,3427.9,13.7864121]
[1641501806074,0.95436198,3428.3,3427.9,13.7864121]
[1641501806977,0.95436198,3428.3,3428.2,16.49]
[1641501807177,0.95436198,3428.3,3428.2,16.887182]
[1641501807375,6.198e-05,3428.4,3428.2,16.887182]
[1641501807577,6.198e-05,3428.4,3428.3,2.00479]
[1641501807775,6.198e-05,3428.4,3428.3,19.161826]
[1641501809575,0.6007699,3429.0,3428.3,19.161826]
[1641501809976,0.6007699,3429.0,3428.5,12.49]
[1641501810376,0.6007699,3429.0,3428.5,12.50456717]
[1641501810575,0.6007699,3429.0,3428.7,12.49]
[1641501811178,0.459982,3428.9,3428.7,12.887182]
[1641501811377,2.37786619,3429.4,3428.8,4.0]
[1641501811581,2.81076795,3429.6,3428.5,0.01456717]
[1641501811582,0.6007699,3429.2,3428.5,0.01456717]
[1641501811779,2.389262,3429.1,3428.5,0.01456717]
[1641501811978,0.6007699,3428.6,3428.0,16.2511792]
[1641501812178,0.6007699,3428.3,3428.0,16.2511792]
[1641501812378,0.6007699,3428.3,3428.2,16.49]
[1641501813180,0.6007699,3428.3,3428.2,12.49]
[1641501813578,0.6007699,3428.3,3428.1,0.397182]
[1641501813779,0.6007699,3428.3,3428.0,2.00479]
[1641501813780,1.0607519,3428.3,3428.0,2.00479]
[1641501813978,0.8617,3428.6,3428.0,2.00479]
[1641501814182,0.6007699,3428.1,3428.0,14.49479]
[1641501814381,0.6007699,3428.1,3428.0,2.00479]
[1641501814780,0.6007699,3428.1,3428.0,14.49479]
[1641501816183,0.6007699,3428.1,3428.0,18.49479]
[1641501816385,0.6007699,3428.3,3428.0,18.49479]
[1641501816786,0.6007699,3428.3,3428.2,12.49]
[1641501819188,0.6007699,3428.7,3428.2,12.49]
[1641501819687,0.6007699,3428.7,3428.4,12.49]
[1641501819987,2.00479,3429.1,3428.4,12.49]
[1641501820187,0.6007699,3428.6,3428.4,12.49]
[1641501821189,0.6007699,3428.6,3428.5,12.887182]
[1641501821791,2.00479,3429.1,3428.5,13.483282]
[1641501821990,2.00479,3429.1,3428.9,4.0]
[1641501822190,1.54942843,3429.4,3429.0,0.397182]
[1641501822390,0.94865853,3429.4,3429.0,0.397182]
[1641501822790,1.54942843,3429.4,3429.0,0.397182]
[1641501822992,0.94865853,3429.4,3429.0,0.397182]
[1641501823191,1.54942843,3429.4,3429.0,0.397182]
[1641501823795,2.00479,3429.8,3429.0,2.401972]
[1641501823995,0.6007699,3429.1,3429.0,2.401972]
[1641501824795,0.6007699,3429.4,3429.0,14.891972]
[1641501824995,2.00479,3429.8,3429.0,14.891972]
[1641501825194,0.6007699,3429.6,3429.0,14.891972]
[1641501825394,0.6007699,3429.4,3429.0,14.891972]
[1641501825995,2.00479,3429.8,3429.0,14.891972]
[1641501826294,0.6007699,3429.4,3429.0,14.891972]
[1641501827195,2.00479,3429.8,3429.0,14.891972]
[1641501827394,0.6007699,3429.6,3429.0,14.891972]
[1641501827995,2.00479,3429.8,3429.0,14.891972]
[1641501828198,0.6007699,3429.4,3429.0,14.891972]
[1641501829798,0.6007699,3429.3,3429.0,14.891972]
[1641501830497,0.6007699,3429.3,3429.0,15.326072]
[1641501830902,0.6007699,3429.4,3429.0,15.326072]
[1641501831501,2.00479,3429.8,3429.0,15.326072]
[1641501831703,0.6007699,3429.6,3429.0,15.326072]
[1641501831901,2.00479,3429.8,3429.0,15.326072]
[1641501832100,0.6007699,3429.2,3429.0,15.326072]
[1641501832501,0.6007699,3429.4,3429.0,15.326072]
[1641501832902,2.6055599,3429.8,3429.0,15.326072]
[1641501833101,0.6007699,3429.4,3429.1,0.01456446]
[1641501833303,0.6007699,3429.2,3429.1,0.01456446]
[1641501835003,2.00479,3429.8,3429.1,0.01456446]
[1641501835204,0.6007699,3429.3,3429.1,0.01456446]
[1641501838206,1.6191519,3429.3,3429.0,2.43889]
[1641501838409,0.6007699,3429.1,3429.0,2.00479]
[1641501839007,1.0607519,3429.1,3429.0,2.00479]
[1641501840911,0.6007699,3429.1,3429.0,2.00479]
[1641501841109,1.0607519,3429.1,3429.0,2.00479]
[1641501844016,0.6007699,3429.1,3429.0,2.00479]
[1641501844213,0.6007699,3429.6,3429.0,14.49479]
[1641501844413,0.6007699,3429.6,3429.5,4.0]
[1641501844613,2.00479,3429.8,3429.5,5.124682]
[1641501844815,1.12979,3429.8,3429.7,0.01456193]
[1641501845214,1.12979,3429.8,3429.7,12.50456193]
[1641501845613,1.12979,3429.8,3429.7,10.53040105]
[1641501846014,1.54942843,3430.1,3429.7,10.53040105]
[1641501846216,1.54942843,3430.1,3429.7,11.82139064]
[1641501846414,0.94865853,3430.1,3429.7,11.82139064]
[1641501846816,0.94865853,3430.1,3429.8,15.19526005]
[1641501847014,0.6007699,3430.1,3429.8,15.19526005]
[1641501847415,0.6007699,3430.1,3429.8,10.53040105]
[1641501847714,0.6007699,3430.1,3429.9,0.397182]
[1641501847915,0.6007699,3430.1,3429.9,10.92758305]
[1641501848615,0.6007699,3430.1,3429.9,0.397182]
[1641501849017,0.6007699,3430.1,3429.9,12.887182]
[1641501850022,0.6007699,3430.1,3430.0,4.0]
[1641501850221,2.00479,3430.2,3430.0,12.49]
[1641501850421,2.00479,3430.2,3430.1,0.397182]
[1641501850821,2.00479,3430.2,3430.1,12.887182]
[1641501851022,2.00479,3430.2,3430.1,0.397182]
[1641501851327,2.464772,3430.2,3430.1,0.397182]
[1641501851726,2.46736918,3430.2,3430.1,0.397182]
[1641501852224,2.92735118,3430.2,3429.8,6.99732671]
[1641501852425,0.6007699,3429.9,3429.8,6.99732671]
[1641501853224,1.0607519,3429.9,3429.8,6.99732671]
[1641501854025,1.0607519,3429.9,3429.7,1.34666946]
[1641501854626,1.0607519,3429.9,3429.4,2.00479]
[1641501854826,0.6007699,3429.5,3429.4,2.00479]
[1641501855025,2.00479,3430.2,3429.4,2.00479]
[1641501855227,0.6007699,3429.7,3429.4,2.00479]
[1641501855426,0.6007699,3429.9,3429.6,4.01456223]
[1641501855627,0.459982,3429.8,3429.6,0.01456223]
[1641501855827,0.6007699,3429.7,3429.4,2.00479]
[1641501856030,0.6007699,3429.5,3429.4,2.00479]
[1641501856629,1.0607519,3429.5,3429.4,2.00479]
[1641501857933,0.6007699,3429.5,3429.4,2.00479]
[1641501858333,1.0607519,3429.5,3429.4,2.00479]
[1641501860837,0.6007699,3429.5,3429.4,2.00479]
[1641501861639,0.6007699,3429.5,3429.4,2.60339]
[1641501861840,1.06340065,3429.5,3429.4,2.60339]
[1641501862139,1.52338265,3429.5,3429.4,2.60339]
[1641501862539,1.06340065,3429.5,3429.4,2.60339]
[1641501862739,1.0607519,3429.5,3429.4,2.60339]
[1641501862939,0.6007699,3429.5,3429.4,2.60339]
[1641501865443,1.0607519,3429.5,3429.4,2.60339]
[1641501867044,0.6007699,3429.5,3429.4,2.60339]
[1641501867242,1.52337825,3429.5,3429.4,2.60339]
[1641501868144,1.0607519,3429.5,3429.4,2.60339]
[1641501868543,0.6007699,3429.5,3429.4,2.60339]
[1641501868944,1.0607519,3429.5,3429.4,2.60339]
[1641501869148,0.6007699,3429.5,3429.4,2.60339]
[1641501873251,1.0607519,3429.5,3429.4,2.60339]
[1641501874256,0.6007699,3429.5,3429.4,2.60339]
[1641501874453,1.0607519,3429.5,3429.4,2.00479]
[1641501875056,2.70918919,3429.5,3429.4,2.00479]
[1641501875456,2.24920719,3429.5,3429.4,2.00479]
[1641501875959,2.70918919,3429.5,3429.4,2.00479]
[1641501876959,3.46238919,3429.5,3429.4,2.00479]
[1641501877161,2.27656603,3429.5,3429.4,1.78019]
[1641501877360,2.27656603,3429.5,3429.0,2.00479]
[1641501877559,1.5,3429.1,3429.0,2.00479]
[1641501877762,2.1007699,3429.1,3429.0,2.00479]
[1641501878162,0.6007699,3429.1,3429.0,2.00479]
[1641501878362,2.5607519,3429.1,3429.0,2.00479]
[1641501878962,3.02336603,3429.1,3429.0,2.00479]
[1641501880465,4.45693186,3429.1,3429.0,2.00479]
[1641501881170,2.95693186,3429.1,3429.0,2.00479]
[1641501881367,4.45693186,3429.1,3428.7,0.4408]
[1641501881567,0.6007699,3428.8,3428.7,0.4408]
[1641501881767,1.2310699,3428.8,3428.7,0.4408]
[1641501882568,1.69368403,3428.8,3428.7,0.51791292]
[1641501882769,2.15366603,3428.8,3428.7,0.51791292]
[1641501884976,3.11997722,3428.8,3428.7,0.51791292]
[1641501885470,3.11997722,3428.8,3428.7,0.07711292]
[1641501885672,4.61997722,3428.8,3428.7,0.07711292]
[1641501885872,4.15736309,3428.8,3427.9,1.84974032]
[1641501886072,2.1007699,3428.0,3427.6,11.94700314]
[1641501886273,1.884472,3427.9,3427.6,1.86431106]
[1641501886473,0.459982,3427.8,3427.6,1.86431106]
[1641501886973,0.6007699,3427.7,3427.6,1.84974032]
[1641501887575,0.6007699,3427.7,3427.4,2.46948141]
[1641501887774,0.6007699,3427.7,3427.1,0.4353]
[1641501887975,3.889262,3427.9,3427.1,0.4353]
[1641501888175,0.6007699,3427.2,3427.1,0.4353]
[1641501888376,1.1843699,3427.2,3427.1,0.4353]
[1641501888575,1.6443519,3427.2,3427.0,0.39727782]
[1641501888775,3.5288239,3427.2,3427.0,0.39727782]
[1641501889177,2.0288239,3427.2,3427.0,0.39727782]
[1641501889782,3.5288239,3427.2,3427.0,0.39727782]
[1641501890381,2.00479,3427.1,3427.0,0.39727782]
[1641501891385,2.00479,3427.1,3426.4,5.93553602]
[1641501891583,2.00479,3427.1,3426.5,0.397182]
[1641501892384,0.6007699,3426.6,3426.5,0.397182]
[1641501892786,0.96631119,3427.5,3426.5,20.887182]
[1641501892983,0.96631119,3427.5,3427.1,4.0]
[1641501893184,0.96631119,3427.5,3427.2,0.397182]
[1641501893383,0.96631119,3427.5,3427.2,0.973182]
[1641501894386,1.79195729,3428.2,3427.2,0.973182]
[1641501894387,2.00479,3427.8,3427.2,0.973182]
[1641501894585,2.00479,3427.8,3427.3,3.335614]
[1641501894785,2.00479,3427.8,3427.4,0.397182]
[1641501895185,1.20807437,3428.1,3427.9,2.35377053]
[1641501895388,1.20807437,3428.1,3428.0,0.397182]
[1641501895586,1.20437468,3428.2,3428.0,12.887182]
[1641501896488,1.20437468,3428.2,3428.0,14.891972]
[1641501896889,1.43356583,3428.5,3428.0,14.891972]
[1641501896890,1.43356583,3428.5,3428.0,2.401972]
[1641501897291,2.00479,3428.8,3428.0,2.401972]
[1641501898092,2.00479,3428.8,3428.0,14.891972]
[1641501898293,1.45825738,3428.5,3428.4,4.0]
[1641501898492,0.46270939,3428.7,3428.4,4.397182]
[1641501899392,4.05531344,3429.2,3428.4,4.41174945]
[1641501899693,2.00479,3429.2,3428.4,4.41174945]
[1641501900394,2.00479,3429.2,3428.6,2.00479]
[1641501900593,2.00479,3429.2,3428.7,0.397182]
[1641501900796,0.46268123,3429.1,3428.7,0.397182]
[1641501901396,0.46268123,3429.1,3428.6,3.36132552]
[1641501905395,1.20572521,3429.0,3428.6,3.36132552]
[1641501907697,1.20572521,3428.9,3428.6,3.36132552]
[1641501907897,0.459982,3428.8,3428.6,3.36132552]
[1641501908899,0.92266323,3428.7,3428.6,3.36132552]
[1641501909099,0.92266323,3428.7,3428.6,1.35653552]
[1641501909497,0.92266323,3428.7,3428.4,2.4801242]
[1641501910500,2.12838844,3428.7,3428.4,2.4801242]
[1641501910702,1.66840644,3428.7,3428.4,2.4801242]
[1641501911598,1.20572521,3428.7,3428.4,2.4801242]
[1641501911798,1.66840644,3428.8,3428.7,2.48966753]
[1641501912000,0.99300644,3428.8,3428.7,15.85246753]
[1641501912199,1.73845294,3429.4,3428.7,13.37736509]
[1641501912400,1.73845294,3429.4,3428.8,0.397182]
[1641501912600,1.73845294,3429.4,3428.9,2.00479]
[1641501912800,1.73845294,3429.4,3428.9,6.670737]
[1641501913000,2.37786619,3429.6,3429.0,1.09749618]
[1641501913400,2.62174761,3429.7,3429.0,1.09749618]
[1641501913601,2.62174761,3429.7,3429.0,1.49467818]
[1641501914000,2.62174761,3429.7,3429.1,4.0]
[1641501914500,2.62174761,3429.7,3429.1,16.49]
[1641501914701,2.00479,3429.7,3429.1,4.0]
[1641501914901,2.00479,3429.7,3429.1,16.887182]
[1641501915102,2.00479,3429.7,3429.1,4.397182]
[1641501915803,2.00479,3429.7,3429.3,12.49]
[1641501916002,2.00479,3429.7,3429.4,0.41174504]
[1641501916203,2.00479,3429.7,3429.5,12.49]
[1641501916502,2.00479,3429.7,3429.6,17.552449]
[1641501916905,2.00479,3429.7,3429.6,13.92703811]
[1641501917103,2.00479,3429.7,3429.6,18.19505511]
[1641501918507,2.00479,3429.7,3429.6,18.59223711]
[1641501919207,2.00479,3430.1,3429.6,18.59223711]
[1641501919405,2.00479,3430.1,3429.8,4.0]
[1641501919806,2.00479,3430.1,3429.8,16.49]
[1641501920506,2.00479,3430.1,3429.8,4.0]
[1641501923010,2.00479,3430.1,3429.9,0.397182]
[1641501923211,1.21066649,3430.0,3429.9,0.397182]
[1641501923411,2.42784849,3430.0,3429.6,3.04464611]
[1641501923612,2.42784849,3430.0,3429.6,2.00479]
[1641501924313,1.21066649,3429.8,3429.6,2.00479]
[1641501926914,1.21066649,3429.7,3429.6,2.00479]
[1641501928719,1.21066649,3429.8,3429.6,2.00479]
[1641501929617,1.21066649,3429.9,3429.6,2.00479]
[1641501931619,1.21066649,3429.9,3429.6,14.49479]
[1641501932118,1.21066649,3429.9,3429.7,0.397182]
[1641501932318,0.96822993,3430.4,3429.7,0.397182]
[1641501935620,0.96822993,3430.3,3429.7,0.397182]
[1641501937323,1.35270193,3430.3,3429.6,16.52902904]
[1641501937522,3.66780193,3430.3,3429.6,4.03902904]
[1641501937722,1.5,3429.7,3428.9,2.00479]
[1641501937922,1.5,3429.8,3428.9,2.00479]
[1641501938328,1.5,3429.8,3428.7,1.70614722]
[1641501938522,1.5,3429.5,3428.7,1.70614722]
[1641501938725,2.00479,3428.8,3428.7,1.70614722]
[1641501939023,2.54719,3428.8,3428.7,1.70614722]
[1641501939226,3.007172,3428.8,3428.7,1.70614722]
[1641501939524,2.54719,3428.8,3428.7,1.70614722]
[1641501939823,0.5424,3428.8,3428.7,1.70614722]
[1641501940224,1.002382,3428.8,3428.7,1.70614722]
[1641501940626,0.5424,3428.8,3428.7,1.70614722]
[1641501941427,1.002382,3428.8,3428.7,1.70614722]
[1641501942428,2.502382,3428.8,3428.1,0.4413]
[1641501942626,1.5,3428.4,3427.3,31.37777195]
[1641501942829,3.50479,3428.4,3427.6,2.00479]
[1641501943128,0.384472,3428.3,3427.6,2.00479]
[1641501943325,1.5,3428.2,3427.6,2.00479]
[1641501943527,0.384472,3428.3,3427.6,2.00479]
[1641501944026,2.90006718,3429.0,3427.7,0.397182]
[1641501944227,1.5,3429.1,3428.0,4.0]
[1641501944427,1.5,3429.1,3427.7,0.397182]
[1641501944428,1.5,3429.1,3427.7,12.887182]
[1641501944627,2.00479,3429.2,3428.0,4.0]
[1641501944826,2.00479,3428.7,3428.0,4.0]
[1641501945027,2.97301993,3428.7,3428.0,4.0]
[1641501945527,2.97301993,3428.7,3427.7,12.49]
[1641501946027,2.97301993,3428.7,3427.6,3.67100176]
[1641501946227,0.46272437,3428.6,3428.1,0.12599847]
[1641501946427,0.96822993,3428.5,3428.1,0.12599847]
[1641501947030,1.35270193,3428.5,3428.1,0.12599847]
[1641501947231,1.45827014,3428.4,3428.1,0.12599847]
[1641501947629,0.459982,3428.3,3427.7,0.12599847]
[1641501948829,0.46272437,3428.2,3427.7,0.12599847]
[1641501950030,2.64162079,3428.3,3427.7,0.12599847]
[1641501950233,0.96822993,3428.0,3427.7,0.12599847]
[1641501950838,1.959982,3427.9,3427.7,0.12599847]
[1641501951035,0.384472,3427.8,3427.7,0.12599847]
[1641501951435,0.384472,3427.8,3427.3,0.47442807]
[1641501951632,1.5,3427.7,3427.0,0.47442807]
[1641501951834,2.3727,3427.7,3427.0,0.47442807]
[1641501952032,1.5,3427.3,3427.0,0.47442807]
[1641501952333,1.5,3427.1,3427.0,0.47442807]
[1641501952732,2.00479,3427.1,3427.0,0.47442807]
[1641501953133,2.849244,3427.1,3427.0,0.47442807]
[1641501953532,2.849244,3427.1,3426.7,2.46948141]
[1641501953732,2.849244,3427.1,3426.6,1.84677971]
[1641501954937,2.849244,3427.1,3426.4,4.31626112]
[1641501955134,2.849244,3427.1,3426.4,1.84677971]
[1641501956537,2.849244,3427.1,3426.1,4.91817141]
[1641501956735,4.30808002,3427.1,3426.1,2.44869]
[1641501956935,4.30808002,3427.1,3426.1,2.00479]
[1641501957137,5.80808002,3427.1,3426.1,2.00479]
[1641501957735,4.30808002,3427.1,3426.1,2.00479]
[1641501959037,4.30808002,3427.1,3426.3,4.0]
[1641501959239,2.849244,3427.1,3426.3,4.0]
[1641501959836,2.849244,3427.1,3426.4,1.49665297]
[1641501960041,1.45892974,3426.9,3426.4,1.49665297]
[1641501960437,2.389262,3427.1,3426.4,1.89383497]
[1641501960940,2.389262,3427.1,3426.6,2.16550416]
[1641501960941,2.00479,3427.1,3426.6,2.16550416]
[1641501961140,1.45866915,3427.5,3427.0,0.01457354]
[1641501961438,33.5153,3428.5,3427.4,2.27325182]
[1641501961637,1.5,3428.3,3427.4,2.27325182]
[1641501961837,1.5,3428.1,3426.9,2.27359668]
[1641501962240,1.5,3427.1,3426.9,2.27359668]
[1641501962442,0.844454,3427.0,3426.4,1.49665297]
[1641501962844,2.00479,3426.9,3426.4,1.49665297]
[1641501967050,2.00479,3426.9,3426.5,3.02389075]
[1641501967249,2.00479,3427.2,3426.5,3.02389075]
[1641501968952,2.00479,3427.2,3426.5,5.02868075]
[1641501969153,2.00479,3427.2,3426.9,6.27359715]
[1641501969353,2.00479,3427.2,3427.0,0.397182]
[1641501973153,2.00479,3427.7,3427.0,0.397182]
[1641501975360,1.45843603,3428.0,3427.6,4.0]
[1641501975657,0.96822993,3429.2,3427.9,12.49]
[1641501975855,32.9254,3428.9,3428.2,0.87506997]
[1641501976056,0.96822993,3429.2,3428.3,0.397182]
[1641501976856,2.89973334,3429.4,3428.3,0.397182]
[1641501977058,2.00479,3428.4,3428.3,0.397182]
[1641501979062,1.12974907,3428.4,3428.3,0.397182]
[1641501979459,3.70233107,3428.4,3427.8,0.86517773]
[1641501979660,3.70233107,3428.4,3427.5,2.00479]
[1641501979859,1.5,3428.2,3427.5,2.00479]
[1641501980461,3.24234907,3428.4,3427.5,2.00479]
[1641501980859,1.74234907,3428.4,3427.5,2.00479]
[1641501981059,2.00479,3427.9,3427.5,2.00479]
[1641501981659,0.384472,3427.8,3427.0,36.3645]
[1641501981861,0.384472,3427.8,3427.0,4.0]
[1641501982261,0.384472,3427.8,3427.1,4.668261]
[1641501983061,0.384472,3427.8,3427.1,6.673051]
[1641501984664,0.384472,3427.8,3427.2,1.32372967]
[1641501988767,0.384472,3427.8,3427.3,1.36546085]
[1641501989769,2.00479,3427.9,3427.7,1.3658277]
[1641501989970,2.464772,3427.9,3427.7,1.3658277]
[1641501991470,2.464772,3427.9,3427.7,3.88587545]
[1641501992271,2.00479,3427.9,3427.7,3.88587545]
[1641501993574,0.844454,3427.8,3427.7,2.52004775]
[1641501993772,0.844454,3427.8,3427.3,2.97329217]
[1641501995174,0.844454,3427.8,3427.4,0.12029361]
[1641501996178,1.5,3427.5,3427.4,0.12029361]
[1641501996375,2.607382,3427.5,3426.8,0.46782794]
[1641501996576,1.5,3427.0,3426.8,0.46782794]
[1641501996778,0.384472,3426.9,3426.8,0.46782794]
[1641501996976,3.50479,3427.0,3426.8,0.46782794]
[1641501997175,0.459982,3426.9,3426.8,0.46782794]
[1641501997876,0.459982,3426.9,3426.4,0.01457586]
[1641502004786,0.459982,3426.9,3426.5,1.59239333]
[1641502005387,2.00479,3427.0,3426.5,1.59239333]
[1641502005790,0.384472,3426.9,3426.5,1.59239333]
[1641502005990,2.713072,3426.9,3426.2,2.47261794]